[Event "*** Titled Tuesday Blitz"]
[Site "Chess.com"]
[Date "2019.09.03"]
[Round "4"]
[White "TheFireChess"]
[Black "x-6099009240"]
[Result "1/2-1/2"]
[WhiteElo "2500"]
[BlackElo "2347"]
[TimeControl "180+2"]
[EndTime "15:52:43 PDT"]
[Termination "Game drawn by repetition"]

1. e4 {[%clk 0:03:01.9]} 1... c5 {[%clk 0:03:00.8]} 2. c3 {[%clk 0:03:02.5]}
2... d6 {[%clk 0:03:01.8]} 3. d4 {[%clk 0:03:03.1]} 3... Nf6 {[%clk 0:03:03.5]}
4. dxc5 {[%clk 0:03:04.3]} 4... Nc6 {[%clk 0:03:04.8]} 5. f3 {[%clk 0:03:04.5]}
5... dxc5 {[%clk 0:03:04.2]} 6. Qxd8+ {[%clk 0:03:04.4]} 6... Kxd8 {[%clk
0:03:04]} 7. Be3 {[%clk 0:03:05.6]} 7... e6 {[%clk 0:02:58.9]} 8. Na3 {[%clk
0:03:06]} 8... a6 {[%clk 0:02:57.7]} 9. Nc4 {[%clk 0:03:05.5]} 9... b5 {[%clk
0:02:49.3]} 10. O-O-O+ {[%clk 0:03:03.1]} 10... Kc7 {[%clk 0:02:48.4]} 11. Bf4+
{[%clk 0:03:03.5]} 11... Kb7 {[%clk 0:02:49.7]} 12. Nd6+ {[%clk 0:03:02.3]}
12... Bxd6 {[%clk 0:02:49.3]} 13. Bxd6 {[%clk 0:03:03.2]} 13... c4 {[%clk
0:02:40.6]} 14. Nh3 {[%clk 0:03:03.4]} 14... h6 {[%clk 0:02:40.7]} 15. g3 {[%clk
0:02:55.6]} 15... Rd8 {[%clk 0:02:40.3]} 16. Bg2 {[%clk 0:02:52.9]} 16... Ne8
{[%clk 0:02:33.5]} 17. Bf4 {[%clk 0:02:37.9]} 17... Rxd1+ {[%clk 0:02:30.6]} 18.
Rxd1 {[%clk 0:02:36.9]} 18... e5 {[%clk 0:02:32.2]} 19. Be3 {[%clk 0:02:36.7]}
19... Bxh3 {[%clk 0:02:30.8]} 20. Bxh3 {[%clk 0:02:37.1]} 20... Rd8 {[%clk
0:02:32.7]} 21. Rxd8 {[%clk 0:02:32.3]} 21... Nxd8 {[%clk 0:02:34.6]} 22. Bc5
{[%clk 0:02:29.1]} 22... Nc7 {[%clk 0:02:00.8]} 23. Bd6 {[%clk 0:02:01.8]} 23...
f6 {[%clk 0:02:00.3]} 24. Bd7 {[%clk 0:01:48.6]} 24... Nce6 {[%clk 0:01:47]} 25.
h4 {[%clk 0:01:46.2]} 25... Kb6 {[%clk 0:01:45.3]} 26. Kd2 {[%clk 0:01:09]}
26... Nc5 {[%clk 0:01:45.9]} 27. Be8 {[%clk 0:01:04.8]} 27... Nde6 {[%clk
0:01:37.7]} 28. Be7 {[%clk 0:00:38.4]} 28... Nc7 {[%clk 0:01:31.7]} 29. Bf7
{[%clk 0:00:26.5]} 29... Kc6 {[%clk 0:01:30.5]} 30. b4 {[%clk 0:00:23.7]} 30...
N5e6 {[%clk 0:01:14.2]} 31. f4 {[%clk 0:00:14.9]} 31... exf4 {[%clk 0:01:11.1]}
32. gxf4 {[%clk 0:00:16.8]} 32... Nxf4 {[%clk 0:01:12.5]} 33. Bc5 {[%clk
0:00:17.8]} 33... Nfe6 {[%clk 0:01:07.9]} 34. Be3 {[%clk 0:00:19.1]} 34... Kd7
{[%clk 0:01:06.2]} 35. Bg6 {[%clk 0:00:19.5]} 35... Kd6 {[%clk 0:01:03.9]} 36.
Bf5 {[%clk 0:00:20.6]} 36... Ke5 {[%clk 0:01:04.5]} 37. Bb6 {[%clk 0:00:21.6]}
37... Ne8 {[%clk 0:01:02.1]} 38. Ba7 {[%clk 0:00:19.9]} 38... Kd6 {[%clk
0:00:52.9]} 39. Ke3 {[%clk 0:00:21.3]} 39... Nd8 {[%clk 0:00:48]} 40. Bg6 {[%clk
0:00:21.4]} 40... Nc7 {[%clk 0:00:44.3]} 41. Bc5+ {[%clk 0:00:22.4]} 41... Kc6
{[%clk 0:00:41.4]} 42. Bf5 {[%clk 0:00:20.6]} 42... Nde6 {[%clk 0:00:41.7]} 43.
Ba7 {[%clk 0:00:18]} 43... Kb7 {[%clk 0:00:40.6]} 44. Bd4 {[%clk 0:00:18.7]}
44... Kc6 {[%clk 0:00:35.2]} 45. Ba7 {[%clk 0:00:19.1]} 45... Kd6 {[%clk
0:00:36.3]} 46. Bb8 {[%clk 0:00:19.8]} 46... Kc6 {[%clk 0:00:35.4]} 47. Ba7
{[%clk 0:00:20.9]} 1/2-1/2

[Event "*** Titled Tuesday Blitz"]
[Site "Chess.com"]
[Date "2019.09.03"]
[Round "4"]
[White "johnathan113"]
[Black "Jospem"]
[Result "0-1"]
[WhiteElo "2765"]
[BlackElo "2940"]
[TimeControl "180+2"]
[EndTime "15:52:49 PDT"]
[Termination "Jospem won on time"]

1. e4 {[%clk 0:03:01.9]} 1... c5 {[%clk 0:02:59.3]} 2. Nf3 {[%clk 0:03:02.8]}
2... d6 {[%clk 0:03:00.3]} 3. d4 {[%clk 0:03:04.4]} 3... cxd4 {[%clk 0:03:02.2]}
4. Nxd4 {[%clk 0:03:06.3]} 4... Nf6 {[%clk 0:03:03.9]} 5. Nc3 {[%clk 0:03:07.9]}
5... a6 {[%clk 0:03:05.6]} 6. a3 {[%clk 0:03:08.6]} 6... Nc6 {[%clk 0:03:04.3]}
7. Bc4 {[%clk 0:03:07.4]} 7... e6 {[%clk 0:03:05.1]} 8. Be3 {[%clk 0:03:04.7]}
8... Be7 {[%clk 0:03:04.1]} 9. O-O {[%clk 0:03:04.2]} 9... O-O {[%clk
0:03:04.7]} 10. Ba2 {[%clk 0:03:05.5]} 10... Bd7 {[%clk 0:03:01.9]} 11. f4
{[%clk 0:03:04.1]} 11... e5 {[%clk 0:02:52.9]} 12. fxe5 {[%clk 0:02:24.9]} 12...
Nxe5 {[%clk 0:02:44.8]} 13. Kh1 {[%clk 0:02:18.3]} 13... Rc8 {[%clk 0:02:43.1]}
14. Bg5 {[%clk 0:02:10.7]} 14... Nfg4 {[%clk 0:02:18.4]} 15. Bxe7 {[%clk
0:02:10]} 15... Qxe7 {[%clk 0:02:20.3]} 16. Nd5 {[%clk 0:02:11.2]} 16... Qh4
{[%clk 0:02:21.8]} 17. h3 {[%clk 0:02:00.8]} 17... Nf2+ {[%clk 0:02:22.6]} 18.
Rxf2 {[%clk 0:02:02.2]} 18... Qxf2 {[%clk 0:02:24.5]} 19. Ne7+ {[%clk
0:02:01.4]} 19... Kh8 {[%clk 0:02:25.8]} 20. Nxc8 {[%clk 0:02:02.6]} 20... Rxc8
{[%clk 0:02:24.1]} 21. Qg1 {[%clk 0:01:57.2]} 21... Qh4 {[%clk 0:01:52.8]} 22.
Bd5 {[%clk 0:01:40.9]} 22... Ng4 {[%clk 0:01:32.8]} 23. Rf1 {[%clk 0:01:40.1]}
23... Nf6 {[%clk 0:01:27.6]} 24. Qf2 {[%clk 0:01:04.1]} 24... Qxf2 {[%clk
0:01:14.6]} 25. Rxf2 {[%clk 0:01:06]} 25... Nxd5 {[%clk 0:01:16.1]} 26. exd5
{[%clk 0:01:07.3]} 26... Kg8 {[%clk 0:01:17.5]} 27. b3 {[%clk 0:00:50.5]} 27...
b5 {[%clk 0:01:18.4]} 28. b4 {[%clk 0:00:33.3]} 28... Rc4 {[%clk 0:01:17.9]} 29.
Rd2 {[%clk 0:00:32.9]} 29... Kf8 {[%clk 0:00:57.2]} 30. Kg1 {[%clk 0:00:34.1]}
30... Ke7 {[%clk 0:00:58.6]} 31. Kf2 {[%clk 0:00:35.3]} 31... Kf6 {[%clk
0:01:00.1]} 32. g4 {[%clk 0:00:29.5]} 32... Rc3 {[%clk 0:00:51.7]} 33. Nf3
{[%clk 0:00:29.9]} 33... h6 {[%clk 0:00:45.1]} 34. Rd4 {[%clk 0:00:12.4]} 34...
Rxa3 {[%clk 0:00:44.5]} 35. Rf4+ {[%clk 0:00:12.6]} 35... Ke7 {[%clk 0:00:45.9]}
36. g5 {[%clk 0:00:13.1]} 36... hxg5 {[%clk 0:00:40.2]} 37. Nxg5 {[%clk
0:00:14.1]} 37... f5 {[%clk 0:00:41.3]} 38. h4 {[%clk 0:00:14]} 38... Rc3 {[%clk
0:00:41.7]} 39. Rf3 {[%clk 0:00:11.9]} 39... Rxc2+ {[%clk 0:00:40.6]} 40. Kg3
{[%clk 0:00:13.8]} 40... Rc4 {[%clk 0:00:33.5]} 41. Re3+ {[%clk 0:00:13.8]}
41... Kf6 {[%clk 0:00:34.9]} 42. Nh7+ {[%clk 0:00:14.2]} 42... Kg6 {[%clk
0:00:36.2]} 43. Nf8+ {[%clk 0:00:15.3]} 43... Kf7 {[%clk 0:00:37.7]} 44. Nxd7
{[%clk 0:00:17.2]} 44... f4+ {[%clk 0:00:38.9]} 0-1

[Event "*** Titled Tuesday Blitz"]
[Site "Chess.com"]
[Date "2019.09.03"]
[Round "4"]
[White "Gordima"]
[Black "wonderfultime"]
[Result "0-1"]
[WhiteElo "2801"]
[BlackElo "2948"]
[TimeControl "180+2"]
[EndTime "15:52:52 PDT"]
[Termination "wonderfultime won by resignation"]

1. Nf3 {[%clk 0:02:56.8]} 1... Nf6 {[%clk 0:02:59.4]} 2. c4 {[%clk 0:02:57.8]}
2... c6 {[%clk 0:03:00.3]} 3. g3 {[%clk 0:02:57.8]} 3... d5 {[%clk 0:03:01.6]}
4. Bg2 {[%clk 0:02:59.4]} 4... Bg4 {[%clk 0:02:59.5]} 5. Ne5 {[%clk 0:02:54]}
5... Be6 {[%clk 0:03:00.9]} 6. cxd5 {[%clk 0:02:55]} 6... Bxd5 {[%clk
0:03:02.8]} 7. Nf3 {[%clk 0:02:56.6]} 7... c5 {[%clk 0:03:04.1]} 8. Nc3 {[%clk
0:02:58.2]} 8... Bc6 {[%clk 0:03:05]} 9. O-O {[%clk 0:02:59.9]} 9... Nbd7 {[%clk
0:03:03.1]} 10. Re1 {[%clk 0:02:58.5]} 10... e5 {[%clk 0:03:01.3]} 11. e4 {[%clk
0:02:56.6]} 11... Be7 {[%clk 0:03:01.1]} 12. d3 {[%clk 0:02:56.1]} 12... O-O
{[%clk 0:03:02.1]} 13. a4 {[%clk 0:02:49.8]} 13... b6 {[%clk 0:02:59.8]} 14. Nd2
{[%clk 0:02:47.6]} 14... a6 {[%clk 0:02:59.8]} 15. Nc4 {[%clk 0:02:46.6]} 15...
b5 {[%clk 0:02:56.4]} 16. Ne3 {[%clk 0:02:47.1]} 16... Re8 {[%clk 0:02:57.1]}
17. f4 {[%clk 0:02:32.8]} 17... Qb6 {[%clk 0:02:49.7]} 18. Nf5 {[%clk 0:02:17]}
18... Bf8 {[%clk 0:02:48.9]} 19. Kh1 {[%clk 0:01:59.8]} 19... Rad8 {[%clk
0:02:42.3]} 20. Qe2 {[%clk 0:01:58.3]} 20... g6 {[%clk 0:02:21.7]} 21. Nh4
{[%clk 0:01:43.4]} 21... b4 {[%clk 0:02:09.4]} 22. Nd1 {[%clk 0:01:40.1]} 22...
exf4 {[%clk 0:02:10.3]} 23. gxf4 {[%clk 0:01:39.3]} 23... c4 {[%clk 0:02:11.8]}
24. Be3 {[%clk 0:01:06.7]} 24... Qb7 {[%clk 0:02:09.5]} 25. e5 {[%clk
0:00:44.7]} 25... cxd3 {[%clk 0:02:07.7]} 26. Qf1 {[%clk 0:00:35.2]} 26... Ne4
{[%clk 0:01:57.3]} 27. Nf2 {[%clk 0:00:29]} 27... Ndc5 {[%clk 0:01:55.8]} 28.
Ng4 {[%clk 0:00:24.6]} 28... h5 {[%clk 0:01:40.7]} 29. Nf2 {[%clk 0:00:23.6]}
29... d2 {[%clk 0:01:40.6]} 30. Red1 {[%clk 0:00:24.5]} 30... Nb3 {[%clk
0:01:34.5]} 31. Rab1 {[%clk 0:00:25.4]} 31... Nxf2+ {[%clk 0:01:31.2]} 32. Qxf2
{[%clk 0:00:23.5]} 32... Rd3 {[%clk 0:01:30.8]} 33. f5 {[%clk 0:00:21.3]} 33...
Rxe5 {[%clk 0:01:22.1]} 34. fxg6 {[%clk 0:00:17.2]} 34... Bxg2+ {[%clk
0:01:21.9]} 35. Nxg2 {[%clk 0:00:17.4]} 35... Rdxe3 {[%clk 0:01:21.7]} 36. Rf1
{[%clk 0:00:18.1]} 36... Re2 {[%clk 0:01:14.9]} 37. gxf7+ {[%clk 0:00:19.2]}
37... Kh7 {[%clk 0:01:16.3]} 38. Qg3 {[%clk 0:00:18.6]} 38... Qxg2+ {[%clk
0:01:04.9]} 39. Qxg2 {[%clk 0:00:20.5]} 39... Rxg2 {[%clk 0:01:06.7]} 40. Kxg2
{[%clk 0:00:21.8]} 40... Kg7 {[%clk 0:00:55.6]} 41. Rbd1 {[%clk 0:00:10.9]}
41... Re2+ {[%clk 0:00:55.2]} 42. Rf2 {[%clk 0:00:10.4]} 42... Rxf2+ {[%clk
0:00:44.3]} 43. Kxf2 {[%clk 0:00:10.7]} 43... Kxf7 {[%clk 0:00:46.2]} 44. Ke2
{[%clk 0:00:11.6]} 44... Bg7 {[%clk 0:00:47.8]} 45. Kd3 {[%clk 0:00:12.1]} 45...
Bh6 {[%clk 0:00:40.9]} 46. Kc4 {[%clk 0:00:05.8]} 46... Nc1 {[%clk 0:00:41.8]}
47. Kxb4 {[%clk 0:00:04.7]} 47... Nd3+ {[%clk 0:00:43]} 48. Kc3 {[%clk
0:00:05.8]} 48... Nf2 {[%clk 0:00:44.5]} 49. Rxd2 {[%clk 0:00:07.5]} 49... Ne4+
{[%clk 0:00:45.6]} 0-1

[Event "*** Titled Tuesday Blitz"]
[Site "Chess.com"]
[Date "2019.09.03"]
[Round "4"]
[White "ALEXJR20"]
[Black "boasovietica"]
[Result "0-1"]
[WhiteElo "2216"]
[BlackElo "2459"]
[TimeControl "180+2"]
[EndTime "15:52:53 PDT"]
[Termination "boasovietica won by checkmate"]

1. c4 {[%clk 0:03:01.9]} 1... c5 {[%clk 0:02:59.3]} 2. g3 {[%clk 0:03:01.9]}
2... Nc6 {[%clk 0:03:00.2]} 3. Bg2 {[%clk 0:03:02.7]} 3... e5 {[%clk 0:03:01.3]}
4. a3 {[%clk 0:03:02.9]} 4... a5 {[%clk 0:03:01.5]} 5. Nc3 {[%clk 0:03:04.2]}
5... g6 {[%clk 0:03:02.2]} 6. e4 {[%clk 0:03:01.4]} 6... Bg7 {[%clk 0:03:03]} 7.
Nge2 {[%clk 0:03:02.5]} 7... Nge7 {[%clk 0:03:03.5]} 8. O-O {[%clk 0:03:03.3]}
8... O-O {[%clk 0:03:04.8]} 9. f4 {[%clk 0:03:02.2]} 9... d6 {[%clk 0:03:03.8]}
10. d3 {[%clk 0:03:01.4]} 10... Rb8 {[%clk 0:02:46.1]} 11. fxe5 {[%clk
0:02:57.9]} 11... dxe5 {[%clk 0:02:43.9]} 12. Nd5 {[%clk 0:02:57.5]} 12... f6
{[%clk 0:02:29.9]} 13. Be3 {[%clk 0:02:44.2]} 13... b6 {[%clk 0:02:12.2]} 14.
Qd2 {[%clk 0:02:38.9]} 14... Nd4 {[%clk 0:02:11.2]} 15. Nxd4 {[%clk 0:02:39.1]}
15... cxd4 {[%clk 0:02:10.3]} 16. Bh6 {[%clk 0:02:38.6]} 16... b5 {[%clk
0:01:59.7]} 17. Bxg7 {[%clk 0:02:27.9]} 17... Kxg7 {[%clk 0:01:59.5]} 18. b4
{[%clk 0:02:19.8]} 18... bxc4 {[%clk 0:01:52.7]} 19. dxc4 {[%clk 0:02:20.8]}
19... Be6 {[%clk 0:01:35.1]} 20. b5 {[%clk 0:01:55.6]} 20... Rc8 {[%clk
0:01:20.7]} 21. Rac1 {[%clk 0:01:49.6]} 21... Qd6 {[%clk 0:01:12.8]} 22. Qxa5
{[%clk 0:01:42.2]} 22... Nxd5 {[%clk 0:00:51]} 23. cxd5 {[%clk 0:01:34.3]} 23...
Bg4 {[%clk 0:00:27.2]} 24. Rc6 {[%clk 0:01:03.5]} 24... Rxc6 {[%clk 0:00:22]}
25. bxc6 {[%clk 0:01:05.4]} 25... Be2 {[%clk 0:00:19.6]} 26. Rc1 {[%clk
0:00:53.4]} 26... d3 {[%clk 0:00:18.4]} 27. c7 {[%clk 0:00:50.8]} 27... Rc8
{[%clk 0:00:18.6]} 28. Bh3 {[%clk 0:00:52]} 28... f5 {[%clk 0:00:18.7]} 29. exf5
{[%clk 0:00:51.6]} 29... e4 {[%clk 0:00:18.3]} 30. f6+ {[%clk 0:00:51]} 30...
Qxf6 {[%clk 0:00:16.6]} 31. Bxc8 {[%clk 0:00:41]} 31... e3 {[%clk 0:00:17.5]}
32. Bf5 {[%clk 0:00:16.9]} 32... Qxf5 {[%clk 0:00:16]} 33. Qc3+ {[%clk
0:00:06.7]} 33... Kh6 {[%clk 0:00:09.1]} 34. Qe1 {[%clk 0:00:05.9]} 34... d2
{[%clk 0:00:10.3]} 35. Qxe2 {[%clk 0:00:05.8]} 35... dxc1=Q+ {[%clk 0:00:10.2]}
36. Kg2 {[%clk 0:00:06.6]} 36... Qxd5+ {[%clk 0:00:10.9]} 37. Kh3 {[%clk
0:00:05.2]} 37... Qf5+ {[%clk 0:00:10]} 38. g4 {[%clk 0:00:05.8]} 38... Qcf1+
{[%clk 0:00:10.1]} 39. Qxf1 {[%clk 0:00:05.5]} 39... Qxf1+ {[%clk 0:00:11.1]}
40. Kg3 {[%clk 0:00:07.4]} 40... Qf2+ {[%clk 0:00:12.1]} 41. Kh3 {[%clk
0:00:08.2]} 41... Qf3+ {[%clk 0:00:13]} 42. Kh4 {[%clk 0:00:08.9]} 42... g5#
{[%clk 0:00:14.3]} 0-1

[Event "*** Titled Tuesday Blitz"]
[Site "Chess.com"]
[Date "2019.09.03"]
[Round "4"]
[White "chessdjw"]
[Black "VladDobrov"]
[Result "0-1"]
[WhiteElo "2692"]
[BlackElo "2881"]
[TimeControl "180+2"]
[EndTime "15:52:57 PDT"]
[Termination "VladDobrov won on time"]

1. d4 {[%clk 0:03:01.9]} 1... Nf6 {[%clk 0:03:00.8]} 2. c4 {[%clk 0:03:02.8]}
2... e6 {[%clk 0:03:01.8]} 3. g3 {[%clk 0:03:04.1]} 3... c5 {[%clk 0:03:02.4]}
4. Nf3 {[%clk 0:03:04.4]} 4... cxd4 {[%clk 0:03:03.4]} 5. Nxd4 {[%clk
0:03:06.3]} 5... Qc7 {[%clk 0:03:04.8]} 6. Nc3 {[%clk 0:03:05.6]} 6... a6 {[%clk
0:02:59.5]} 7. Bg2 {[%clk 0:03:06.3]} 7... Qxc4 {[%clk 0:03:00.2]} 8. Bf4 {[%clk
0:03:07.7]} 8... Nc6 {[%clk 0:02:59.1]} 9. Nb3 {[%clk 0:03:08.4]} 9... d5 {[%clk
0:02:55.1]} 10. Rc1 {[%clk 0:03:08.5]} 10... Qb4 {[%clk 0:02:54.3]} 11. O-O
{[%clk 0:03:04.3]} 11... Be7 {[%clk 0:02:55.2]} 12. e4 {[%clk 0:02:40.2]} 12...
d4 {[%clk 0:02:40.7]} 13. a3 {[%clk 0:02:10.1]} 13... Qb6 {[%clk 0:02:41.2]} 14.
Na4 {[%clk 0:02:08.6]} 14... Qa7 {[%clk 0:02:42.2]} 15. Bc7 {[%clk 0:01:23.5]}
15... e5 {[%clk 0:02:19.4]} 16. Nb6 {[%clk 0:01:11.6]} 16... O-O {[%clk
0:02:18.7]} 17. Nxa8 {[%clk 0:00:45.3]} 17... Qxa8 {[%clk 0:02:19.7]} 18. Nc5
{[%clk 0:00:45.5]} 18... Bg4 {[%clk 0:01:57.2]} 19. Qb3 {[%clk 0:00:41.1]} 19...
Rc8 {[%clk 0:01:51.5]} 20. Bb6 {[%clk 0:00:34.3]} 20... a5 {[%clk 0:01:19.7]}
21. h3 {[%clk 0:00:31.5]} 21... Bh5 {[%clk 0:01:17.2]} 22. Rfe1 {[%clk
0:00:28.3]} 22... Bxc5 {[%clk 0:00:52.4]} 23. Bxc5 {[%clk 0:00:24.8]} 23... a4
{[%clk 0:00:50.9]} 24. Qb5 {[%clk 0:00:25.1]} 24... Nd7 {[%clk 0:00:44.4]} 25.
Bd6 {[%clk 0:00:25.6]} 25... f6 {[%clk 0:00:21.5]} 26. Rc4 {[%clk 0:00:24.7]}
26... Na7 {[%clk 0:00:17.8]} 27. Qxa4 {[%clk 0:00:21.2]} 27... Rxc4 {[%clk
0:00:15.5]} 28. Qxc4+ {[%clk 0:00:23.1]} 28... Bf7 {[%clk 0:00:17.2]} 29. Qc7
{[%clk 0:00:19.7]} 29... Nf8 {[%clk 0:00:16.3]} 30. Qb8 {[%clk 0:00:13.5]} 30...
Qxb8 {[%clk 0:00:17.1]} 31. Bxb8 {[%clk 0:00:15.4]} 31... Nc6 {[%clk 0:00:18]}
32. Bd6 {[%clk 0:00:16.6]} 32... Bb3 {[%clk 0:00:17.9]} 33. Bf1 {[%clk
0:00:17.1]} 33... Ne6 {[%clk 0:00:19]} 34. Rc1 {[%clk 0:00:17.2]} 34... Ng5
{[%clk 0:00:20.5]} 35. Bg2 {[%clk 0:00:16.7]} 35... d3 {[%clk 0:00:21.6]} 36.
Bb4 {[%clk 0:00:07]} 36... Nxb4 {[%clk 0:00:22.5]} 37. Rc8+ {[%clk 0:00:07.9]}
37... Kf7 {[%clk 0:00:23.8]} 38. Rd8 {[%clk 0:00:06.7]} 38... Ne6 {[%clk
0:00:21.4]} 39. Rd7+ {[%clk 0:00:04.8]} 39... Ke8 {[%clk 0:00:22.7]} 40. Rd6
{[%clk 0:00:06.4]} 40... Ke7 {[%clk 0:00:23.5]} 41. Rxd3 {[%clk 0:00:05.8]}
41... Nxd3 {[%clk 0:00:24.6]} 0-1

[Event "*** Titled Tuesday Blitz"]
[Site "Chess.com"]
[Date "2019.09.03"]
[Round "4"]
[White "Duhless"]
[Black "cherryandmint"]
[Result "1-0"]
[WhiteElo "2991"]
[BlackElo "2807"]
[TimeControl "180+2"]
[EndTime "15:52:59 PDT"]
[Termination "Duhless won by checkmate"]

1. d4 {[%clk 0:03:01.3]} 1... d5 {[%clk 0:03:00.5]} 2. c4 {[%clk 0:03:02.3]}
2... e6 {[%clk 0:03:01.7]} 3. Nf3 {[%clk 0:03:03.2]} 3... Nf6 {[%clk 0:03:02.9]}
4. g3 {[%clk 0:03:04.8]} 4... Be7 {[%clk 0:03:03.9]} 5. Bg2 {[%clk 0:03:05.4]}
5... O-O {[%clk 0:03:05.5]} 6. O-O {[%clk 0:03:06.6]} 6... dxc4 {[%clk
0:03:06.4]} 7. Qc2 {[%clk 0:03:07.8]} 7... a6 {[%clk 0:03:07.5]} 8. Rd1 {[%clk
0:03:09.1]} 8... b5 {[%clk 0:02:39.7]} 9. Ne5 {[%clk 0:03:09.1]} 9... Nd5 {[%clk
0:02:35]} 10. b3 {[%clk 0:03:09.6]} 10... cxb3 {[%clk 0:02:29.7]} 11. axb3
{[%clk 0:03:10.1]} 11... Bb7 {[%clk 0:02:29.6]} 12. Ba3 {[%clk 0:03:10.5]} 12...
Bxa3 {[%clk 0:01:58.6]} 13. Nxa3 {[%clk 0:03:10.8]} 13... Nb4 {[%clk 0:01:56.4]}
14. Qc5 {[%clk 0:03:03.1]} 14... Bxg2 {[%clk 0:01:55.3]} 15. Kxg2 {[%clk
0:03:03.6]} 15... Qd5+ {[%clk 0:01:50.1]} 16. Qxd5 {[%clk 0:03:03.8]} 16... Nxd5
{[%clk 0:01:35]} 17. Nxb5 {[%clk 0:03:05.7]} 17... Rc8 {[%clk 0:01:11]} 18. Rdc1
{[%clk 0:02:57.7]} 18... f6 {[%clk 0:00:58.4]} 19. Nd3 {[%clk 0:02:50.7]} 19...
Nd7 {[%clk 0:00:59.1]} 20. Nc3 {[%clk 0:02:50.8]} 20... Nxc3 {[%clk 0:00:45.1]}
21. Rxc3 {[%clk 0:02:45.2]} 21... a5 {[%clk 0:00:46.5]} 22. Rc4 {[%clk
0:02:14.8]} 22... Ra7 {[%clk 0:00:19.5]} 23. Rca4 {[%clk 0:02:11.5]} 23... c5
{[%clk 0:00:16.9]} 24. Rc1 {[%clk 0:01:44.6]} 24... Rac7 {[%clk 0:00:16.8]} 25.
Rac4 {[%clk 0:01:43.4]} 25... Rb8 {[%clk 0:00:16]} 26. Nxc5 {[%clk 0:01:41.4]}
26... Nxc5 {[%clk 0:00:15.2]} 27. Rxc5 {[%clk 0:01:42.9]} 27... Rxc5 {[%clk
0:00:16.3]} 28. Rxc5 {[%clk 0:01:44]} 28... Rxb3 {[%clk 0:00:14.3]} 29. Rxa5
{[%clk 0:01:45]} 29... Kf7 {[%clk 0:00:15.2]} 30. h4 {[%clk 0:01:43]} 30... Rb4
{[%clk 0:00:14.7]} 31. e3 {[%clk 0:01:43.9]} 31... Rb2 {[%clk 0:00:15.9]} 32. g4
{[%clk 0:01:44.6]} 32... Rc2 {[%clk 0:00:14.2]} 33. Kg3 {[%clk 0:01:44.8]} 33...
Rc1 {[%clk 0:00:15.6]} 34. Ra7+ {[%clk 0:01:43.7]} 34... Kf8 {[%clk 0:00:16.2]}
35. g5 {[%clk 0:01:35]} 35... Kg8 {[%clk 0:00:14.3]} 36. Re7 {[%clk 0:01:25]}
36... Rc6 {[%clk 0:00:15.2]} 37. Kf4 {[%clk 0:01:25.9]} 37... Rd6 {[%clk
0:00:16.8]} 38. Ra7 {[%clk 0:01:14.8]} 38... Rd5 {[%clk 0:00:14.1]} 39. Kg4
{[%clk 0:01:03]} 39... Rb5 {[%clk 0:00:11.5]} 40. Re7 {[%clk 0:00:59.4]} 40...
Rb6 {[%clk 0:00:11.7]} 41. Kh5 {[%clk 0:00:57.1]} 41... f5 {[%clk 0:00:06.3]}
42. g6 {[%clk 0:00:56.1]} 42... hxg6+ {[%clk 0:00:07.6]} 43. Kxg6 {[%clk
0:00:44.5]} 43... e5+ {[%clk 0:00:09.1]} 44. Kxf5 {[%clk 0:00:43.4]} 44... exd4
{[%clk 0:00:11]} 45. exd4 {[%clk 0:00:37.2]} 45... Rf6+ {[%clk 0:00:12.5]} 46.
Ke5 {[%clk 0:00:34]} 46... Kf8 {[%clk 0:00:13.9]} 47. Ra7 {[%clk 0:00:33.4]}
47... Rxf2 {[%clk 0:00:15.5]} 48. d5 {[%clk 0:00:34.5]} 48... Rh2 {[%clk
0:00:12.2]} 49. Ke6 {[%clk 0:00:34.1]} 49... Rxh4 {[%clk 0:00:10]} 50. Ra8#
{[%clk 0:00:34.6]} 1-0

[Event "*** Titled Tuesday Blitz"]
[Site "Chess.com"]
[Date "2019.09.03"]
[Round "4"]
[White "pedro_gines"]
[Black "bubacik"]
[Result "0-1"]
[WhiteElo "2521"]
[BlackElo "2706"]
[TimeControl "180+2"]
[EndTime "15:53:00 PDT"]
[Termination "bubacik won by checkmate"]

1. d4 {[%clk 0:02:36.4]} 1... Nf6 {[%clk 0:01:59]} 2. Nf3 {[%clk 0:02:34.9]}
2... e6 {[%clk 0:01:59.9]} 3. g3 {[%clk 0:02:35.4]} 3... b6 {[%clk 0:01:57.3]}
4. Bg2 {[%clk 0:02:35.5]} 4... Bb7 {[%clk 0:01:58.7]} 5. O-O {[%clk 0:02:36.9]}
5... Be7 {[%clk 0:02:00]} 6. c4 {[%clk 0:02:38.2]} 6... O-O {[%clk 0:02:01.4]}
7. Re1 {[%clk 0:02:39.3]} 7... d5 {[%clk 0:02:01.6]} 8. cxd5 {[%clk 0:02:39.4]}
8... exd5 {[%clk 0:02:03.5]} 9. Nc3 {[%clk 0:02:40.9]} 9... c5 {[%clk
0:02:04.8]} 10. Bf4 {[%clk 0:02:42]} 10... Na6 {[%clk 0:02:06.1]} 11. dxc5
{[%clk 0:02:43.2]} 11... bxc5 {[%clk 0:02:01.5]} 12. Ne5 {[%clk 0:02:44.2]}
12... Nc7 {[%clk 0:02:01.7]} 13. Nc4 {[%clk 0:02:37.5]} 13... Rb8 {[%clk
0:01:22.4]} 14. Bxc7 {[%clk 0:02:08.7]} 14... Qxc7 {[%clk 0:01:24.3]} 15. Nxd5
{[%clk 0:02:09.7]} 15... Nxd5 {[%clk 0:01:14.7]} 16. Bxd5 {[%clk 0:02:11.6]}
16... Rfd8 {[%clk 0:01:13.7]} 17. e4 {[%clk 0:02:05.9]} 17... Bf6 {[%clk
0:00:57.7]} 18. Qf3 {[%clk 0:01:33.8]} 18... Bxd5 {[%clk 0:00:49.9]} 19. exd5
{[%clk 0:01:34.3]} 19... Bxb2 {[%clk 0:00:51.6]} 20. d6 {[%clk 0:01:34]} 20...
Rxd6 {[%clk 0:00:08.2]} 21. Nxb2 {[%clk 0:01:16.3]} 21... h6 {[%clk 0:00:05]}
22. Nc4 {[%clk 0:01:16.4]} 22... Rf6 {[%clk 0:00:06.6]} 23. Qe3 {[%clk
0:01:12.6]} 23... Qc8 {[%clk 0:00:07.6]} 24. Rac1 {[%clk 0:01:11.5]} 24... Qf5
{[%clk 0:00:08.3]} 25. Ne5 {[%clk 0:00:52.3]} 25... Rb2 {[%clk 0:00:07.2]} 26.
Nd3 {[%clk 0:00:42.7]} 26... Rxa2 {[%clk 0:00:07]} 27. Rxc5 {[%clk 0:00:43]}
27... Qh3 {[%clk 0:00:04.8]} 28. Nf4 {[%clk 0:00:42.9]} 28... Qd7 {[%clk
0:00:04.9]} 29. Rd5 {[%clk 0:00:43.2]} 29... Qg4 {[%clk 0:00:05]} 30. Qe8+
{[%clk 0:00:43.3]} 30... Kh7 {[%clk 0:00:06.1]} 31. Qe4+ {[%clk 0:00:45.2]}
31... g6 {[%clk 0:00:07.2]} 32. h3 {[%clk 0:00:44.4]} 32... Qc8 {[%clk 0:00:07]}
33. Qe5 {[%clk 0:00:44.4]} 33... Qc2 {[%clk 0:00:07.4]} 34. Re2 {[%clk
0:00:38.8]} 34... Qb1+ {[%clk 0:00:07.4]} 35. Kg2 {[%clk 0:00:39.4]} 35... Ra1
{[%clk 0:00:08.3]} 36. Kf3 {[%clk 0:00:23.6]} 36... Rf5 {[%clk 0:00:07.5]} 37.
Qe7 {[%clk 0:00:13.2]} 37... Qh1+ {[%clk 0:00:08.3]} 38. Kg4 {[%clk 0:00:08.6]}
38... h5+ {[%clk 0:00:09]} 39. Kh4 {[%clk 0:00:08.2]} 39... Rxf4+ {[%clk
0:00:10.3]} 40. gxf4 {[%clk 0:00:08]} 40... Qxd5 {[%clk 0:00:12.2]} 41. Re5
{[%clk 0:00:08.5]} 41... Qc4 {[%clk 0:00:13]} 42. Kg5 {[%clk 0:00:09]} 42...
Rg1+ {[%clk 0:00:12.8]} 43. Kf6 {[%clk 0:00:09.3]} 43... Qxf4+ {[%clk
0:00:13.8]} 44. Rf5 {[%clk 0:00:07.2]} 44... Qxf5# {[%clk 0:00:15]} 0-1